bitfinex/quotes_BTCUSD_20251015
["timestamp","ask_amount","ask_price","bid_price","bid_amount"]
[1760564523066,0.17981689,111320.0,111310.0,1.07903983]
[1760564523267,0.17981689,111320.0,111310.0,1.19483983]
[1760564523835,0.17981689,111320.0,111310.0,1.19583983]
[1760564524414,0.17981689,111320.0,111310.0,0.72292547]
[1760564525045,0.17981689,111320.0,111310.0,0.60912547]
[1760564525249,0.17981689,111320.0,111310.0,0.72292547]
[1760564525705,0.17981689,111320.0,111310.0,1.08203983]
[1760564525925,0.17981689,111320.0,111310.0,1.19583983]
[1760564526338,0.17981689,111320.0,111310.0,1.08203983]
[1760564526532,0.17981689,111320.0,111310.0,1.59583983]
[1760564527193,0.17981689,111320.0,111310.0,1.7755182]
[1760564527586,0.17981689,111320.0,111310.0,1.59583983]
[1760564528213,0.00014966,111320.0,111310.0,1.7755182]
[1760564528335,0.00014966,111320.0,111310.0,2.1755182]
[1760564528548,0.00014966,111320.0,111310.0,2.5155182]
[1760564528776,0.00014966,111320.0,111310.0,2.4017182]
[1760564528973,0.00014966,111320.0,111310.0,2.5155182]
[1760564529933,0.00014966,111320.0,111310.0,2.5135182]
[1760564530120,0.00014966,111320.0,111310.0,2.48822513]
[1760564530486,0.00014966,111320.0,111310.0,2.49022513]
[1760564531373,0.00014966,111320.0,111310.0,2.48822513]
[1760564531573,0.00014966,111320.0,111310.0,2.49022513]
[1760564531802,0.00014966,111320.0,111310.0,2.49018513]
[1760564534899,0.00014966,111320.0,111310.0,2.63018513]
[1760564539064,0.00014966,111320.0,111310.0,2.77918513]
[1760564539271,0.00014966,111320.0,111310.0,2.66542513]
[1760564539480,0.00014966,111320.0,111310.0,2.77918513]
[1760564543908,0.00014966,111320.0,111310.0,2.77914513]
[1760564545358,0.00014966,111320.0,111310.0,3.03671279]
[1760564547012,0.00014966,111320.0,111310.0,2.92299279]
[1760564547215,0.00014966,111320.0,111310.0,3.03671279]
[1760564547652,0.00014966,111320.0,111310.0,2.92299279]
[1760564547867,0.00014966,111320.0,111310.0,3.03671279]
[1760564552744,0.00014966,111320.0,111310.0,2.92299279]
[1760564552974,6.484e-05,111320.0,111310.0,3.03671279]
[1760564553215,6.484e-05,111320.0,111310.0,2.88771279]
[1760564553452,6.484e-05,111320.0,111310.0,2.77399279]
[1760564553692,6.484e-05,111320.0,111310.0,2.92299279]
[1760564553913,6.484e-05,111320.0,111310.0,3.03671279]
[1760564554154,6.484e-05,111320.0,111310.0,2.88771279]
[1760564554811,6.484e-05,111320.0,111310.0,2.77399279]
[1760564555147,6.484e-05,111320.0,111310.0,2.88771279]
[1760564555781,6.484e-05,111320.0,111310.0,2.77399279]
[1760564555961,6.484e-05,111320.0,111310.0,2.88771279]
[1760564556377,6.484e-05,111320.0,111310.0,2.77399279]
[1760564556585,6.484e-05,111320.0,111310.0,2.88771279]
[1760564557662,6.484e-05,111320.0,111310.0,2.88571279]
[1760564558172,6.484e-05,111320.0,111310.0,2.88871279]
[1760564558663,6.484e-05,111320.0,111310.0,2.88571279]
[1760564558869,6.484e-05,111320.0,111310.0,2.88667279]
[1760564559098,2.484e-05,111320.0,111310.0,2.77499279]
[1760564559512,2.484e-05,111320.0,111310.0,3.03567279]
[1760564559716,2.484e-05,111320.0,111310.0,3.03767279]
[1760564560374,0.23136501,111370.0,111360.0,0.4]
[1760564560579,0.231515,111370.0,111360.0,1.10953919]
[1760564560787,0.18871117,111370.0,111360.0,1.10953919]
[1760564561205,0.18871117,111370.0,111360.0,1.1328822]
[1760564562053,0.18871117,111370.0,111360.0,1.0740822]
[1760564562260,0.18871117,111370.0,111360.0,0.65925012]
[1760564562716,0.18871117,111370.0,111360.0,0.54557012]
[1760564562929,0.18871117,111370.0,111360.0,0.65925012]
[1760564563538,0.18871117,111370.0,111360.0,0.54557012]
[1760564563744,0.18871117,111370.0,111360.0,0.65925012]
[1760564564092,0.18871117,111370.0,111360.0,0.54557012]
[1760564564320,0.18871117,111370.0,111360.0,0.65925012]
[1760564564719,0.18871117,111370.0,111360.0,0.54557012]
[1760564564910,0.18871117,111370.0,111360.0,0.65925012]
[1760564566542,0.18871117,111370.0,111360.0,0.54557012]
[1760564566695,0.18871117,111370.0,111360.0,0.65925012]
[1760564567070,0.18871117,111370.0,111360.0,0.54557012]
[1760564567272,0.18871117,111370.0,111360.0,0.65925012]
[1760564567713,0.18871117,111370.0,111360.0,0.54557012]
[1760564567862,0.18871117,111370.0,111360.0,0.65925012]
[1760564569300,0.18871117,111370.0,111360.0,0.54557012]
[1760564569539,0.18871117,111370.0,111360.0,0.65925012]
[1760564571348,0.18871117,111370.0,111360.0,0.79925012]
[1760564572182,0.18871117,111370.0,111360.0,0.54557012]
[1760564572380,0.18871117,111370.0,111360.0,0.65925012]
[1760564572747,0.18871117,111370.0,111360.0,0.54557012]
[1760564572957,0.18871117,111370.0,111360.0,0.65925012]
[1760564575208,0.00583598,111370.0,111360.0,0.65925012]
[1760564575421,0.18544316,111370.0,111360.0,0.65925012]
[1760564575630,0.18544316,111370.0,111360.0,0.65921012]
[1760564575890,0.18544316,111370.0,111360.0,0.54557012]
[1760564576075,0.18544316,111370.0,111360.0,0.65921012]
[1760564576282,0.18544316,111370.0,111360.0,0.70921012]
[1760564576484,0.18544316,111370.0,111360.0,0.59557012]
[1760564576698,0.18544316,111370.0,111360.0,0.65921012]
[1760564576901,0.17973156,111370.0,111360.0,1.79649306]
[1760564577105,0.17973156,111370.0,111360.0,1.68285306]
[1760564577307,0.17973156,111370.0,111360.0,1.79649306]
[1760564578336,0.00014999,111370.0,111360.0,1.79649306]
[1760564578337,0.17973156,111370.0,111360.0,1.26751917]
[1760564578544,0.00014999,111370.0,111360.0,1.79649306]
[1760564579714,0.00014999,111370.0,111360.0,1.68285306]
[1760564579923,0.00014999,111370.0,111360.0,1.79649306]
[1760564580372,0.00014999,111370.0,111360.0,1.68285306]
[1760564580575,0.00014999,111370.0,111360.0,1.79649306]
[1760564580985,0.00014999,111370.0,111360.0,1.68285306]
[1760564581604,0.00014999,111370.0,111360.0,1.79649306]
[1760564583078,0.00014999,111370.0,111360.0,1.68285306]
[1760564583297,0.00014999,111370.0,111360.0,1.79649306]
[1760564583502,0.00014999,111370.0,111360.0,1.84649306]
[1760564584332,0.00014999,111370.0,111360.0,2.64649306]
[1760564584593,0.00014999,111370.0,111360.0,3.40182695]
[1760564585201,0.00014999,111370.0,111360.0,3.28818695]
[1760564585407,0.00014999,111370.0,111360.0,3.28618695]
[1760564585615,0.00014999,111370.0,111360.0,3.39982695]
[1760564585837,0.00014999,111370.0,111360.0,3.40382695]
[1760564586043,0.00014999,111370.0,111360.0,3.29018695]
[1760564586215,0.00014999,111370.0,111360.0,3.40382695]
[1760564586628,0.00014999,111370.0,111360.0,3.29018695]
[1760564586815,0.00014999,111370.0,111360.0,3.40382695]
[1760564588315,0.00014999,111370.0,111360.0,3.42180695]
[1760564588719,0.00014999,111370.0,111360.0,3.40382695]
[1760564588925,4.385e-05,111370.0,111360.0,3.40382695]
[1760564589130,4.385e-05,111370.0,111360.0,3.55282695]
[1760564590627,4.385e-05,111370.0,111360.0,3.04665788]
[1760564591764,4.385e-05,111370.0,111360.0,2.89765788]
[1760564592552,4.385e-05,111370.0,111360.0,2.96585676]
[1760564593316,4.385e-05,111370.0,111360.0,2.96385676]
[1760564593525,4.385e-05,111370.0,111360.0,2.96585676]
[1760564593932,4.385e-05,111370.0,111360.0,2.96385676]
[1760564594136,4.385e-05,111370.0,111360.0,2.96585676]
[1760564597036,3.85e-06,111370.0,111360.0,3.11485676]
[1760564598690,3.85e-06,111370.0,111360.0,2.96585676]
[1760564599038,3.85e-06,111370.0,111360.0,3.38119065]
[1760564599240,3.85e-06,111370.0,111360.0,2.85225676]
[1760564599446,3.85e-06,111370.0,111360.0,2.96585676]
[1760564604922,3.85e-06,111370.0,111360.0,2.85225676]
[1760564605137,3.85e-06,111370.0,111360.0,1.1854067]
[1760564605294,3.85e-06,111370.0,111360.0,1.67607448]
[1760564605500,3.85e-06,111370.0,111360.0,2.4613956]
[1760564605703,3.85e-06,111370.0,111360.0,2.09757788]
[1760564606108,3.85e-06,111370.0,111360.0,2.38401788]
[1760564606282,0.17958542,111370.0,111360.0,1.8939556]
[1760564606499,0.17958542,111370.0,111360.0,1.17716782]
[1760564606698,0.17958542,111370.0,111360.0,1.41290401]
[1760564606907,0.17958542,111370.0,111360.0,1.86646401]
[1760564607080,0.17958542,111370.0,111360.0,2.08224399]
[1760564607288,0.17958542,111370.0,111360.0,1.96868399]
[1760564607502,0.17958542,111370.0,111360.0,2.4933953]
[1760564607702,0.17958542,111370.0,111360.0,2.4943953]
[1760564607923,0.17958542,111370.0,111360.0,1.8622376]
[1760564608121,0.17958542,111370.0,111360.0,1.9757976]
[1760564608399,0.17958542,111370.0,111360.0,2.5553953]
[1760564608921,0.17958542,111370.0,111360.0,1.846995]
[1760564609325,0.17958542,111370.0,111360.0,1.960555]
[1760564610144,0.17958542,111370.0,111360.0,1.958555]
[1760564610348,0.17958542,111370.0,111360.0,1.4317524]
[1760564610551,0.17958542,111370.0,111360.0,1.5453124]
[1760564611463,0.17958542,111370.0,111360.0,1.960555]
[1760564613221,0.17958542,111370.0,111360.0,1.5453124]
[1760564613659,0.17958542,111370.0,111360.0,1.4317524]
[1760564613873,0.17958542,111370.0,111360.0,1.5453124]
[1760564614305,0.17958542,111370.0,111360.0,1.4317524]
[1760564614532,0.17958542,111370.0,111360.0,1.5453124]
[1760564615205,0.17958542,111370.0,111360.0,1.3778724]
[1760564615434,0.6145557,111380.0,111360.0,0.7453124]
[1760564615653,0.17958157,111370.0,111360.0,0.452]
[1760564615894,0.17958157,111370.0,111360.0,0.70913012]
[1760564616390,0.17958157,111370.0,111360.0,0.70813012]
[1760564616813,0.17958157,111370.0,111360.0,0.70913012]
[1760564617246,0.17958157,111370.0,111360.0,0.59457012]
[1760564617502,0.17958157,111370.0,111360.0,0.70813012]
[1760564617733,0.17958157,111370.0,111360.0,0.70913012]
[1760564618389,0.59482417,111370.0,111360.0,0.59557012]
[1760564618635,0.17958157,111370.0,111360.0,0.70913012]
[1760564619067,0.17958157,111370.0,111360.0,0.59557012]
[1760564619282,0.17958157,111370.0,111360.0,0.70913012]
[1760564620571,0.17958157,111370.0,111360.0,0.59557012]
[1760564620784,0.17958157,111370.0,111360.0,0.70913012]
[1760564623872,0.17958157,111370.0,111360.0,0.65913012]
[1760564624389,0.17958157,111370.0,111360.0,0.54557012]
[1760564624958,0.17958157,111370.0,111360.0,0.65913012]
[1760564625378,0.59482417,111370.0,111360.0,0.65913012]
[1760564625809,0.17958157,111370.0,111360.0,0.65913012]
[1760564626778,0.17958157,111370.0,111360.0,0.54557012]
[1760564627002,0.17958157,111370.0,111360.0,0.65913012]
[1760564628293,0.17958157,111370.0,111360.0,0.54557012]
[1760564628489,0.17958157,111370.0,111360.0,0.65913012]
[1760564629331,0.59482417,111370.0,111360.0,0.65913012]
[1760564630697,0.17958157,111370.0,111360.0,0.49169012]
[1760564630899,0.17958157,111370.0,111360.0,0.09169012]
[1760564631075,0.59482417,111370.0,111360.0,0.09169012]
[1760564631313,0.59482417,111370.0,111360.0,0.25913012]
[1760564631934,0.59482417,111370.0,111360.0,0.14557012]
[1760564632142,0.59482417,111370.0,111360.0,0.25913012]
[1760564632561,0.59482417,111370.0,111360.0,0.14557012]
[1760564632763,0.59482417,111370.0,111360.0,0.25913012]
[1760564633177,0.59482417,111370.0,111360.0,0.14557012]
[1760564633385,0.59482417,111370.0,111360.0,0.25913012]
[1760564633591,0.59482417,111370.0,111360.0,0.14557012]
[1760564633799,6.01006677,111370.0,111360.0,0.09169012]
[1760564634024,5.96180922,111370.0,111360.0,0.09169012]
[1760564634243,6.37705182,111370.0,111360.0,1e-08]
[1760564634450,6.99101712,111370.0,111360.0,1e-08]
[1760564634662,1.01011516,111340.0,111330.0,0.1256321]
[1760564634866,1.01011516,111340.0,111330.0,0.24275221]
[1760564635099,1.01011516,111340.0,111330.0,0.25728011]
[1760564635328,1.37710567,111340.0,111330.0,0.08984011]
[1760564635777,6.37710567,111340.0,111330.0,0.08984011]
[1760564636004,6.37710567,111340.0,111330.0,0.20440011]
[1760564636226,6.37710567,111340.0,111330.0,0.09084011]
[1760564636475,6.37710567,111340.0,111330.0,0.20440011]
[1760564637094,6.37710567,111340.0,111330.0,0.09084011]
[1760564637289,6.37710567,111340.0,111330.0,0.20440011]
[1760564637715,6.37710567,111340.0,111330.0,0.09084011]
[1760564638055,6.37710567,111340.0,111330.0,0.20440011]
[1760564638260,6.39722045,111340.0,111330.0,0.20440011]
[1760564640473,6.19256571,111340.0,111330.0,0.20440011]
[1760564640677,6.19256571,111340.0,111330.0,0.00114999]
[1760564640899,0.17967837,111310.0,111300.0,0.05392]
[1760564641101,0.17972829,111310.0,111300.0,0.25717012]
[1760564641303,0.17972829,111310.0,111300.0,0.14361012]
[1760564641532,0.59497089,111310.0,111300.0,0.14361012]
[1760564641741,0.59497089,111310.0,111300.0,0.25717012]
[1760564641953,0.17972681,111280.0,111270.0,1.33316377]
[1760564642160,0.17972681,111280.0,111270.0,0.66761129]
[1760564642370,0.59496941,111280.0,111270.0,0.14361012]
[1760564642773,0.59496941,111280.0,111270.0,0.25717012]
[1760564642988,0.6157215,111280.0,111270.0,0.20325012]
[1760564643124,0.2004789,111280.0,111270.0,0.20325012]
[1760564643351,1.01021201,111280.0,111270.0,0.08969012]
[1760564643939,1.01021201,111280.0,111270.0,0.20325012]
[1760564644590,0.59496941,111280.0,111270.0,0.08969012]
[1760564644798,0.62197491,111280.0,111270.0,0.20325012]
[1760564645004,0.62197491,111280.0,111270.0,0.20425012]
[1760564645226,0.20673231,111280.0,111270.0,0.20429012]
[1760564645445,0.0270055,111280.0,111270.0,0.72085796]
[1760564645657,0.18869372,111300.0,111280.0,0.17971573]
[1760564645865,0.60396199,111310.0,111290.0,0.80097184]
[1760564646073,0.17969451,111300.0,111290.0,0.70558306]
[1760564646282,0.17969451,111300.0,111290.0,1.74059473]
[1760564646803,0.17969451,111300.0,111290.0,1.14564147]
[1760564647216,0.17969451,111300.0,111290.0,1.03204147]
[1760564647430,0.17969451,111300.0,111290.0,1.14564147]
[1760564648497,0.17969451,111300.0,111290.0,1.03304147]
[1760564648705,0.17969451,111300.0,111290.0,1.03404147]
[1760564648907,0.17969451,111300.0,111290.0,1.14764147]
[1760564649356,0.17969451,111300.0,111290.0,1.32735213]
[1760564649766,0.17969451,111300.0,111290.0,1.38127213]
[1760564649965,0.17969451,111300.0,111290.0,1.39911853]
[1760564650848,0.59493711,111300.0,111290.0,0.14561012]
[1760564651057,0.59493711,111300.0,111290.0,0.25921012]
[1760564651262,0.17969451,111300.0,111290.0,0.25921012]
[1760564651461,0.59493711,111300.0,111290.0,0.14561012]
[1760564651612,0.59493711,111300.0,111290.0,0.25921012]
[1760564651819,0.59493711,111300.0,111290.0,0.25721012]
[1760564652019,0.59493711,111300.0,111290.0,0.25821012]
[1760564653236,0.17969451,111300.0,111290.0,0.14461012]
[1760564653419,0.17969451,111300.0,111290.0,0.25821012]
[1760564655761,0.17969451,111300.0,111290.0,1.25316338]
[1760564656370,1.01017971,111300.0,111290.0,0.09069012]
[1760564656815,1.37718038,111300.0,111290.0,0.20429012]
[1760564657663,1.37718038,111300.0,111290.0,0.20329012]
[1760564658708,1.37718038,111300.0,111290.0,0.08969012]
[1760564658839,1.37718038,111300.0,111290.0,0.20329012]
[1760564659457,6.37718038,111300.0,111290.0,0.08969012]
[1760564659659,6.37718038,111300.0,111290.0,0.20329012]
[1760564660680,6.37718038,111300.0,111290.0,0.08969012]
[1760564660886,6.37718038,111300.0,111290.0,0.20329012]
[1760564661100,6.37718038,111300.0,111290.0,0.08969012]
[1760564661326,6.39647417,111300.0,111290.0,0.20329012]
[1760564661942,0.17974296,111270.0,111260.0,0.436769]
[1760564662143,0.17974296,111270.0,111260.0,0.69397912]
[1760564663139,0.17974296,111270.0,111260.0,0.58052878]
[1760564663340,0.17974296,111270.0,111260.0,0.69512878]
[1760564663769,0.17974296,111270.0,111260.0,0.69612878]
[1760564665237,0.17974141,111280.0,111260.0,1.1775305]
[1760564665439,0.17974141,111280.0,111270.0,0.14384669]
[1760564665681,0.17974141,111280.0,111270.0,0.25744669]
[1760564665870,0.17974141,111280.0,111270.0,0.1258724]
[1760564666110,0.17974141,111280.0,111270.0,0.25600504]
[1760564666312,0.17974141,111280.0,111270.0,0.2394724]
[1760564667047,0.17974141,111280.0,111270.0,0.1258724]
[1760564667362,0.17974141,111280.0,111270.0,0.14384669]
[1760564667569,0.17974141,111280.0,111270.0,0.25844669]
[1760564667772,0.17974141,111280.0,111270.0,0.2404724]
[1760564667957,0.17974141,111280.0,111270.0,0.1968724]
[1760564668148,0.17974141,111280.0,111270.0,0.3104724]
[1760564668405,0.17974141,111280.0,111270.0,0.3643924]
[1760564669439,0.17974141,111280.0,111270.0,0.2507924]
[1760564669746,0.17974141,111280.0,111270.0,0.3643924]
[1760564671270,0.17974141,111280.0,111270.0,0.2507924]
[1760564671714,0.17974141,111280.0,111270.0,0.3643924]
[1760564672147,0.17974141,111280.0,111270.0,0.2507924]
[1760564672289,0.17974141,111280.0,111270.0,0.3643924]
[1760564673047,0.17974141,111280.0,111270.0,0.2507924]
[1760564673254,0.17974141,111280.0,111270.0,0.3643924]
[1760564674302,0.17974141,111280.0,111270.0,0.32821012]
[1760564674510,0.17974141,111280.0,111270.0,0.21461012]
[1760564674745,0.17974141,111280.0,111270.0,0.32821012]
[1760564675130,0.17974141,111280.0,111270.0,0.21461012]
[1760564675687,0.17974141,111280.0,111270.0,0.32821012]
[1760564675886,0.17974141,111280.0,111270.0,0.25821012]
[1760564676104,0.17974141,111280.0,111270.0,0.14461012]
[1760564676306,0.17974141,111280.0,111270.0,0.25821012]
[1760564677458,0.00967688,111280.0,111270.0,0.25821012]
[1760564677801,0.17974141,111280.0,111270.0,0.25821012]
[1760564678771,0.59573003,111280.0,111270.0,0.14461012]
[1760564678975,0.61510821,111280.0,111270.0,0.25821012]
[1760564679421,0.61510821,111280.0,111270.0,1e-08]
[1760564679624,0.17974296,111270.0,111260.0,0.00073638]
[1760564679836,0.17977528,111250.0,111240.0,0.0004]
[1760564680052,0.5957639,111250.0,111240.0,0.09058885]
[1760564680268,0.5957639,111250.0,111240.0,0.20418885]
[1760564680535,0.17977528,111250.0,111240.0,0.09058885]
[1760564680702,0.5957639,111250.0,111240.0,0.00089873]
[1760564680902,0.5957639,111250.0,111240.0,0.11449873]
[1760564681126,0.17977528,111250.0,111240.0,0.00089873]
[1760564681495,0.6151393,111250.0,111240.0,0.11449873]
[1760564682324,0.9551393,111250.0,111240.0,0.11449873]
[1760564682736,5.9551393,111250.0,111240.0,0.11449873]
[1760564682936,5.9551393,111250.0,111240.0,0.00089873]
[1760564683340,5.9551393,111250.0,111240.0,0.11449873]
[1760564683540,5.9551393,111250.0,111240.0,0.00089873]
[1760564683750,5.9551393,111250.0,111240.0,0.11449873]
[1760564684133,5.9551393,111250.0,111240.0,0.00089873]
[1760564684335,5.9551393,111250.0,111240.0,0.11449873]
[1760564684689,5.9551393,111250.0,111240.0,0.00089873]
[1760564684900,5.53915068,111250.0,111240.0,0.11449873]
[1760564685112,0.51977528,111250.0,111240.0,0.11449873]
[1760564685312,0.9357639,111250.0,111240.0,0.00089873]
[1760564685513,0.9357639,111250.0,111240.0,0.11567243]
[1760564687366,0.51977528,111250.0,111240.0,0.11567243]
[1760564688151,1.25184424,111250.0,111240.0,0.00207243]
[1760564688333,6.25184424,111250.0,111240.0,0.00207243]
[1760564688537,6.27115882,111250.0,111240.0,0.11567243]
[1760564689258,6.25184424,111250.0,111240.0,0.11567243]
[1760564689468,6.25184424,111250.0,111240.0,0.00207243]
[1760564689664,6.2711538,111250.0,111240.0,0.11567243]
[1760564690224,6.25184424,111250.0,111240.0,0.11567243]
[1760564691388,6.27885913,111250.0,111240.0,0.11567243]
[1760564691584,6.27885913,111250.0,111240.0,0.00207243]
[1760564691785,6.27885913,111250.0,111240.0,0.11567243]
[1760564693032,6.37353913,111250.0,111240.0,0.11567243]
[1760564693232,6.27885913,111250.0,111240.0,0.11567243]
[1760564693435,6.27885913,111250.0,111240.0,0.00207243]
[1760564693781,6.27885913,111250.0,111240.0,0.11567243]
[1760564694304,6.27885913,111250.0,111240.0,0.00207243]
[1760564694529,6.27885913,111250.0,111240.0,0.11567243]
[1760564695596,6.27885913,111250.0,111240.0,0.00207243]
[1760564695735,6.27885913,111250.0,111240.0,0.11567243]
[1760564696978,6.27885913,111250.0,111240.0,0.00207243]
[1760564697193,6.27885913,111250.0,111240.0,0.11567243]
[1760564698496,6.27885913,111250.0,111240.0,0.00207243]
[1760564698686,6.27885913,111250.0,111240.0,0.11567243]
[1760564700024,6.27885913,111250.0,111240.0,0.00207243]
[1760564700189,6.27885913,111250.0,111240.0,0.11567243]
[1760564700588,6.27885913,111250.0,111240.0,0.00207243]
[1760564700812,6.27885913,111250.0,111240.0,0.11567243]
[1760564701041,5.54679017,111250.0,111240.0,0.20536255]
[1760564701376,0.17977528,111250.0,111240.0,0.09176255]
[1760564701578,0.15281511,111260.0,111240.0,0.14572255]
[1760564701784,0.17977528,111250.0,111240.0,0.40241159]
[1760564701994,0.17977528,111250.0,111240.0,0.20464101]
[1760564702606,0.10804525,111260.0,111250.0,0.4]
[1760564702810,0.10804525,111260.0,111250.0,0.6694654]
[1760564702811,0.17975912,111260.0,111250.0,0.6694654]
[1760564703018,0.1887301,111270.0,111250.0,0.81924768]
[1760564703192,0.1887301,111270.0,111260.0,0.10766603]
[1760564703543,0.1887301,111270.0,111260.0,0.22126603]
[1760564703747,0.1887301,111270.0,111260.0,0.20329012]
[1760564704569,0.1887301,111270.0,111260.0,1.10563152]
[1760564704742,0.1887301,111270.0,111260.0,1.0404724]
[1760564705250,0.1887301,111270.0,111260.0,1.54664147]
[1760564705400,0.1887301,111270.0,111260.0,1.54564147]
[1760564707097,0.1887301,111270.0,111260.0,1.72640059]
[1760564707318,0.1887301,111270.0,111260.0,1.54764147]
[1760564710008,0.1887301,111270.0,111260.0,1.54760147]
[1760564711782,0.1887301,111270.0,111260.0,1.43404147]
[1760564711980,0.1887301,111270.0,111260.0,1.60156147]
[1760564712633,0.1887301,111270.0,111260.0,1.48800147]
[1760564712942,0.1887301,111270.0,111260.0,1.60156147]
[1760564714751,0.1887301,111270.0,111260.0,1.48800147]
[1760564715088,0.1887301,111270.0,111260.0,1.60156147]
[1760564715627,0.1887301,111270.0,111260.0,1.48800147]
[1760564715844,0.1887301,111270.0,111260.0,1.60156147]
[1760564716884,0.1887301,111270.0,111260.0,0.9818324]
[1760564717028,0.1887301,111270.0,111260.0,1.0953924]
[1760564718196,0.1887301,111270.0,111260.0,1.1653924]
[1760564721495,0.1887301,111270.0,111260.0,1.0953924]
[1760564724662,0.1887301,111270.0,111260.0,0.9818324]
[1760564724873,0.1887301,111270.0,111260.0,1.0953924]
[1760564725465,0.1887301,111270.0,111260.0,1.27515152]
[1760564725890,0.1887301,111270.0,111260.0,1.16159152]
[1760564726074,0.1887301,111270.0,111260.0,1.27515152]
[1760564726292,0.16827093,111270.0,111260.0,1.27515152]
[1760564727652,0.16827093,111270.0,111260.0,1.10763152]
[1760564727855,0.16827093,111270.0,111260.0,1.27511152]
[1760564729964,0.16827093,111270.0,111260.0,1.34511152]
[1760564730172,0.16827093,111270.0,111260.0,1.27511152]
[1760564731025,0.16827093,111270.0,111260.0,1.16159152]
[1760564731430,0.16827093,111270.0,111260.0,1.27511152]
[1760564733397,0.16827093,111270.0,111260.0,1.16159152]
[1760564733561,0.16827093,111270.0,111260.0,1.27511152]
[1760564733981,0.16827093,111270.0,111260.0,1.16159152]
[1760564734172,0.16827093,111270.0,111260.0,1.27511152]
[1760564734539,0.16827093,111270.0,111260.0,1.16159152]
[1760564734894,0.16827093,111270.0,111260.0,1.27511152]
[1760564735302,0.16827093,111270.0,111260.0,1.34511152]
[1760564735457,0.16827093,111270.0,111260.0,1.7611888]
[1760564735661,0.16827093,111270.0,111260.0,1.6476688]
[1760564735848,0.16827093,111270.0,111260.0,1.7611888]
[1760564738080,0.16827093,111270.0,111260.0,1.5937088]
[1760564738292,0.16827093,111270.0,111260.0,1.34507152]
[1760564738802,0.16827093,111270.0,111260.0,1.7611488]
[1760564742812,0.16827093,111270.0,111260.0,1.34507152]
[1760564743006,0.16827093,111270.0,111260.0,1.7611488]
[1760564748321,0.16827093,111270.0,111260.0,1.34507152]
[1760564748540,0.16827093,111270.0,111260.0,1.7611488]
[1760564749001,0.17974141,111280.0,111270.0,0.43618228]
[1760564749213,0.17974141,111280.0,111270.0,0.5797924]
[1760564749404,0.17974141,111280.0,111270.0,0.6933124]
[1760564751099,0.17974141,111280.0,111270.0,0.6943124]
[1760564752906,0.17974141,111280.0,111270.0,0.6942724]
[1760564753144,0.17974141,111280.0,111270.0,0.5807924]
[1760564753349,0.17974141,111280.0,111270.0,0.6942724]
[1760564753988,0.17974141,111280.0,111270.0,0.87401536]
[1760564754407,0.17974141,111280.0,111270.0,0.6942724]
[1760564754586,0.17974141,111280.0,111270.0,0.87401536]
[1760564754814,0.17974141,111280.0,111270.0,0.6942724]
[1760564755015,0.17974141,111280.0,111270.0,0.87401536]
[1760564755701,0.17974141,111280.0,111270.0,0.6942724]
[1760564756134,0.17974141,111280.0,111270.0,0.87401536]
[1760564756742,0.17972681,111280.0,111270.0,1.29009264]
[1760564756997,0.18872448,111290.0,111270.0,1.29009264]
[1760564757181,0.17972681,111280.0,111270.0,1.20040252]
[1760564757507,0.17972681,111280.0,111270.0,1.29009264]
[1760564757725,0.17972681,111280.0,111270.0,1.17661264]
[1760564757931,0.17972681,111280.0,111270.0,1.29009264]
[1760564758552,0.17972681,111280.0,111270.0,1.17661264]
[1760564758759,0.17972681,111280.0,111270.0,1.28909264]
[1760564760012,0.17972681,111280.0,111270.0,1.29009264]
[1760564761613,0.17972681,111280.0,111270.0,1.17661264]
[1760564761803,0.17972681,111280.0,111270.0,1.29009264]
[1760564762671,0.17972681,111280.0,111270.0,1.17661264]
[1760564762868,0.17972681,111280.0,111270.0,1.29009264]
[1760564771795,0.17972681,111280.0,111270.0,1.17661264]
[1760564771999,0.17972681,111280.0,111270.0,1.29005264]
[1760564772427,0.1914031,111300.0,111290.0,0.4]
[1760564772633,0.18241838,111300.0,111290.0,0.48969012]
[1760564772805,0.18241838,111300.0,111290.0,0.60313012]
[1760564773593,0.18256815,111300.0,111290.0,0.60313012]
[1760564773799,0.18256815,111300.0,111290.0,0.48969012]
[1760564773995,0.18256815,111300.0,111290.0,0.60313012]
[1760564774385,0.18256815,111300.0,111290.0,0.48969012]
[1760564774587,0.18256815,111300.0,111290.0,0.60313012]
[1760564775000,0.18256815,111300.0,111290.0,0.48969012]
[1760564775210,0.18256815,111300.0,111290.0,0.65705012]
[1760564778851,0.18256815,111300.0,111290.0,0.54361012]
[1760564779101,0.18256815,111300.0,111290.0,0.65705012]
[1760564782972,0.00287364,111300.0,111290.0,1.25283806]
[1760564783218,0.18256815,111300.0,111290.0,1.25283806]
[1760564784251,0.18256815,111300.0,111290.0,1.25383806]
[1760564785395,0.00287364,111300.0,111290.0,1.29002034]
[1760564786107,0.00287364,111300.0,111290.0,1.30235149]
[1760564786529,0.00287364,111300.0,111290.0,1.30135149]
[1760564786735,0.00287364,111300.0,111290.0,1.18791149]
[1760564786930,0.00287364,111300.0,111290.0,1.30331149]
[1760564787135,0.00287364,111300.0,111290.0,1.30231149]
[1760564787666,0.00287364,111300.0,111290.0,1.18991149]
[1760564787833,0.00287364,111300.0,111290.0,1.30331149]
[1760564788239,0.00287364,111300.0,111290.0,1.37331149]
[1760564789360,0.00287364,111300.0,111290.0,1.37296708]
[1760564789707,0.16837464,111320.0,111310.0,0.4]
[1760564789836,0.16837464,111320.0,111310.0,0.60309012]
[1760564790755,0.16837464,111320.0,111310.0,0.60409012]
[1760564791786,0.16837464,111320.0,111310.0,0.49069012]
[1760564792018,0.16837464,111320.0,111310.0,0.60409012]
[1760564793354,0.16837464,111320.0,111310.0,0.49069012]
[1760564793562,0.19536697,111320.0,111310.0,0.60409012]
[1760564795371,0.19536697,111320.0,111310.0,0.49069012]
[1760564795572,0.19653959,111320.0,111310.0,0.60409012]
[1760564797267,0.19653959,111320.0,111310.0,0.65801012]
[1760564797467,0.19653959,111320.0,111310.0,0.49069012]
[1760564797692,0.61227246,111320.0,111310.0,0.25801012]
[1760564797932,0.61227246,111320.0,111310.0,0.001]
[1760564798391,0.61227246,111320.0,111310.0,0.1144]
[1760564798760,0.17969451,111300.0,111290.0,0.1256721]
[1760564798959,0.0933569,111300.0,111290.0,0.32876222]
[1760564799093,0.0933569,111300.0,111290.0,0.16144222]
[1760564799302,0.0933569,111300.0,111290.0,0.14361012]
[1760564799503,0.53608808,111300.0,111290.0,0.08969012]
[1760564799721,0.53608808,111300.0,111290.0,0.20309012]
[1760564799920,0.53608808,111300.0,111290.0,0.08969012]
[1760564800121,0.12035521,111300.0,111290.0,0.20309012]
[1760564800577,0.12035521,111300.0,111290.0,0.08969012]
[1760564800869,0.12035521,111300.0,111290.0,0.20309012]
[1760564801312,0.12035521,111300.0,111290.0,0.20409012]
[1760564801729,0.12035521,111300.0,111290.0,0.20309012]
[1760564804031,0.12035521,111300.0,111290.0,0.08969012]
[1760564804240,0.10535521,111300.0,111290.0,0.20309012]
[1760564805959,0.10535521,111300.0,111290.0,0.08969012]
[1760564806418,0.52108808,111300.0,111290.0,0.20309012]
[1760564808789,0.52108808,111300.0,111270.0,0.4717521]
[1760564809013,0.17972681,111280.0,111270.0,0.47190187]
[1760564809241,0.17972681,111280.0,111270.0,0.56159199]
[1760564809466,0.20672796,111280.0,111270.0,0.67499199]